fUST/lending_fUST_20250808
["ID","MTS","AMOUNT","RATE_DAILY","PERIOD"]
[378004076,1754664648576,-460.0,0.00026027,2]
[378004077,1754664648586,-460.0,0.00026027,2]
[378004078,1754664648597,-460.0,0.00026027,2]
[378004079,1754664648607,-460.0,0.00026027,2]
[378004080,1754664648617,-690.63,0.00026027,2]
[378004081,1754664648627,-191.14665694,0.0002616,2]
[378004082,1754664648637,-152.179415,0.00026179,3]
[378004083,1754664648647,-500.0,0.00026207,2]
[378004084,1754664648657,-151.0,0.00026207,2]
[378004085,1754664648666,-2149.0,0.00026256,2]
[378004086,1754664648675,-971.0,0.00026256,2]
[378004087,1754664648685,-636.0,0.00026256,2]
[378004088,1754664648695,-30000.0,0.000263,7]
[378004089,1754664648705,-460.0,0.000263,2]
[378004090,1754664648715,-460.0,0.000263,2]
[378004091,1754664648728,-189.4,0.000263,2]
[378004092,1754664648738,-460.0,0.00026301,2]
[378004093,1754664648749,-369.95110864,0.00026301,2]
[378004094,1754664648759,-460.0,0.00026301,2]
[378004095,1754664648769,-460.0,0.00026301,2]
[378004096,1754664648779,-460.0,0.00026301,2]
[378004097,1754664648789,-460.0,0.00026301,2]
[378004098,1754664648798,-690.63,0.00026301,2]
[378004099,1754664648808,-161.256962,0.00026321,7]
[378004100,1754664648818,-161.256962,0.00026321,7]
[378004101,1754664648828,-420.0,0.00026343,2]
[378004102,1754664648838,-1200.0,0.00026421,2]
[378004103,1754664648848,-500.0,0.00026421,2]
[378004104,1754664648858,-250.0,0.00026421,2]
[378004105,1754664648868,-1000.0,0.00026421,2]
[378004106,1754664648878,-210.359879,0.00026421,7]
[378004107,1754664648888,-210.359871,0.00026421,7]
[378004108,1754664648899,-281.662236,0.00026421,7]
[378004109,1754664648909,-281.66222999,0.00026421,7]
[378004110,1754664648919,-151.0,0.00026421,7]
[378004111,1754664648928,-360.0,0.00026429,2]
[378004112,1754664648938,-1174.64199501,0.00026468,2]
[378004113,1754664648949,-500.0,0.00026468,2]
[378004114,1754664648958,-1500.0,0.00026468,2]
[378004115,1754664648968,-500.0,0.00026468,2]
[378004116,1754664648982,-150.0,0.00026473,2]
[378004117,1754664648991,-218.313758,0.00026473,2]
[378004118,1754664649001,-500.0,0.00026473,2]
[378004119,1754664649011,-504.49613062,0.00026473,2]
[378004120,1754664649021,-325.60750205,0.00026481,2]
[378004121,1754664649032,-198.0,0.00026481,2]
[378004122,1754664649042,-150.0,0.000265,2]
[378004123,1754664649052,-50000.0,0.000265,7]
[378004124,1754664649062,-151.0,0.000265,7]
[378004125,1754664649072,-151.0,0.000265,7]
[378004126,1754664649082,-14798.40241536,0.000265,2]
[378004127,1754664649091,-151.0,0.000265,7]
[378004128,1754664649102,-200.0,0.000265,7]
[378004129,1754664649112,-200.0,0.000265,7]
[378004130,1754664649121,-614.671356,0.000265,7]
[378004131,1754664649131,-614.671356,0.000265,7]
[378004132,1754664649141,-151.0,0.000265,7]
[378004133,1754664649150,-161.256962,0.000265,7]
[378004134,1754664649160,-161.256972,0.000265,7]
[378004135,1754664649169,-1000.0,0.00026521,2]
[378004136,1754664649179,-1000.0,0.00026521,2]
[378004137,1754664649189,-1000.0,0.00026521,2]
[378004138,1754664649199,-1000.0,0.00026521,2]
[378004139,1754664649209,-500.0,0.00026521,2]
[378004140,1754664649221,-460.0,0.00026574,2]
[378004141,1754664649231,-460.0,0.00026574,2]
[378004142,1754664649241,-172.4,0.00026575,2]
[378004143,1754664649251,-460.0,0.00026575,2]
[378004144,1754664649261,-460.0,0.00026575,2]
[378004145,1754664649274,-460.0,0.00026575,2]
[378004146,1754664649283,-460.0,0.00026575,2]
[378004147,1754664649293,-690.63,0.00026575,2]
[378004148,1754664649303,-151.0,0.00026611,7]
[378004149,1754664649313,-200.0,0.00026611,7]
[378004150,1754664649323,-200.0,0.00026611,7]
[378004151,1754664649333,-614.671356,0.00026611,7]
[378004152,1754664649343,-614.671356,0.00026611,7]
[378004153,1754664649356,-151.0,0.00026611,7]
[378004154,1754664649366,-152.179415,0.00026687,2]
[378004155,1754664649377,-481.26,0.00026704,3]
[378004156,1754664649387,-160.0,0.00026741,3]
[378004157,1754664649397,-151.0,0.00026763,7]
[378004158,1754664649407,-151.0,0.00026828,7]
[378004159,1754664649416,-460.0,0.00026848,2]
[378004160,1754664649426,-460.0,0.00026848,2]
[378004161,1754664649436,-460.0,0.00026849,2]
[378004162,1754664649447,-460.0,0.00026849,2]
[378004163,1754664649457,-460.0,0.00026849,2]
[378004164,1754664649466,-460.0,0.00026849,2]
[378004165,1754664649478,-690.63,0.00026849,2]
[378004166,1754664649488,-3182.71876469,0.00026918,6]
[378004167,1754664649497,-1800.0,0.00026968,2]
[378004168,1754664649507,-350.0,0.00026968,2]
[378004169,1754664649517,-1500.0,0.00026968,2]
[378004170,1754664649526,-500.0,0.00026973,2]
[378004171,1754664649536,-500.0,0.00026973,2]
[378004172,1754664649545,-502.24343094,0.00026973,2]
[378004173,1754664649554,-500.0,0.00026973,2]
[378004174,1754664649564,-500.0,0.00026973,2]
[378004175,1754664649576,-500.0,0.00026973,2]
[378004176,1754664649589,-500.0,0.00026973,2]
[378004177,1754664649603,-500.0,0.00026973,2]
[378004178,1754664649619,-500.0,0.00026973,2]
[378004179,1754664649629,-627.30286571,0.00026973,2]
[378004180,1754664649638,-500.0,0.00026973,2]
[378004181,1754664649648,-500.0,0.00026973,2]
[378004182,1754664649658,-500.0,0.00026973,2]
[378004183,1754664649668,-500.0,0.00026973,2]
[378004184,1754664649678,-500.83691608,0.00026973,2]
[378004185,1754664649688,-500.0,0.00026973,2]
[378004186,1754664649698,-500.0,0.00026973,2]
[378004187,1754664649707,-500.0,0.00026973,2]
[378004188,1754664649717,-460.0,0.00026977,2]
[378004189,1754664649729,-151.0,0.0002698,7]
[378004190,1754664649739,-151.0,0.0002698,7]
[378004191,1754664649749,-199.07,0.00027,2]
[378004192,1754664649759,-50000.0,0.00027,7]
[378004193,1754664649769,-800.0,0.00027,4]
[378004194,1754664649778,-151.0,0.00027,7]
[378004195,1754664649788,-151.0,0.00027,7]
[378004196,1754664649798,-18521.0,0.00027,2]
[378004197,1754664649807,-151.0,0.00027,7]
[378004198,1754664649817,-200.0,0.00027,7]
[378004199,1754664649828,-200.0,0.00027,7]
[378004200,1754664649838,-614.671356,0.00027,7]
[378004201,1754664649848,-614.671356,0.00027,7]
[378004202,1754664649858,-151.0,0.00027,7]
[378004203,1754664649868,-2000.0,0.00027016,2]
[378004204,1754664649878,-300.0,0.00027021,2]
[378004205,1754664649887,-520.66919571,0.00027068,2]
[378004206,1754664649898,-1500.0,0.00027068,2]
[378004207,1754664649907,-504.19123616,0.00027068,2]
[378004208,1754664649917,-1500.0,0.00027068,2]
[378004209,1754664649927,-460.0,0.00027122,2]
[378004210,1754664649937,-460.0,0.00027122,2]
[378004211,1754664649947,-460.0,0.00027123,2]
[378004212,1754664649957,-460.0,0.00027123,2]
[378004213,1754664649967,-460.0,0.00027123,2]
[378004214,1754664649978,-157.87,0.00027123,2]
[378004215,1754664649988,-690.63,0.00027123,2]
[378004216,1754664649997,-152.179415,0.00027203,7]
[378004217,1754664650007,-30000.0,0.000273,7]
[378004218,1754664650017,-150.0,0.00027347,2]
[378004219,1754664650027,-196.81447832,0.0002739,2]
[378004220,1754664650036,-460.0,0.00027396,2]
[378004221,1754664650046,-460.0,0.00027396,2]
[378004222,1754664650055,-1000.0,0.00027397,5]
[378004223,1754664650065,-1000.0,0.00027397,5]
[378004224,1754664650074,-1000.0,0.00027397,5]
[378004225,1754664650084,-1000.0,0.00027397,5]
[378004226,1754664650093,-1000.0,0.00027397,5]
[378004227,1754664650103,-395.37535238,0.00027397,5]
[378004228,1754664650112,-460.0,0.00027397,2]
[378004229,1754664650123,-460.0,0.00027397,2]
[378004230,1754664650133,-690.63,0.00027397,2]
[378004231,1754664650143,-500.0,0.00027397,5]
[378004232,1754664650152,-500.0,0.00027397,5]
[378004233,1754664650162,-4000.0,0.000275,2]
[378004234,1754664650171,-45142.35801317,0.000275,2]
[378004235,1754664650181,-1477.69862104,0.000275,4]
[378004236,1754664650191,-242.054137,0.000275,7]
[378004237,1754664650200,-614.671356,0.000275,7]
[378004238,1754664650210,-614.671353,0.000275,7]
[378004239,1754664650219,-2400.0,0.00027516,5]
[378004240,1754664650231,-253.58582058,0.00027516,5]
[378004241,1754664650241,-2000.0,0.00027516,2]
[378004242,1754664650251,-1000.0,0.00027521,5]
[378004243,1754664650261,-1000.0,0.00027521,5]
[378004244,1754664650274,-1000.0,0.00027521,5]
[378004245,1754664650284,-506.52330765,0.00027521,5]
[378004246,1754664650293,-509.71586117,0.00027521,5]
[378004247,1754664650303,-1000.0,0.00027521,5]
[378004248,1754664650313,-1041.56782758,0.00027521,5]
[378004249,1754664650323,-649.92277027,0.00027521,2]
[378004250,1754664650332,-1015.00907503,0.00027521,5]
[378004251,1754664650346,-1149.29904652,0.00027521,5]
[378004252,1754664650358,-501.42733419,0.00027521,5]
[378004253,1754664650368,-1000.0,0.00027521,5]
[378004254,1754664650378,-560.0,0.00027525,2]
[378004255,1754664650388,-2500.0,0.00027564,5]
[378004256,1754664650398,-454.42386801,0.00027568,5]
[378004257,1754664650408,-2000.0,0.00027616,5]
[378004258,1754664650418,-460.0,0.0002767,2]
[378004259,1754664650428,-460.0,0.0002767,2]
[378004260,1754664650437,-460.0,0.00027671,2]
[378004261,1754664650447,-690.63,0.00027671,2]
[378004262,1754664650456,-152.179415,0.00027758,3]
[378004263,1754664650466,-64116.13291444,0.0002778,2]
[378004264,1754664650477,-460.0,0.00027944,2]
[378004265,1754664650487,-460.0,0.00027944,2]
[378004266,1754664650496,-460.0,0.00027945,2]
[378004267,1754664650506,-690.63,0.00027945,2]
[378004268,1754664650515,-200.0,0.00027985,15]
[378004269,1754664650525,-200.0,0.00027985,15]
[378004270,1754664650535,-300.0,0.00027985,15]
[378004271,1754664650544,-6712.32,0.00027993,4]
[378004272,1754664650554,-50000.0,0.00028,7]
[378004273,1754664650563,-552.69837882,0.00028,2]
[378004274,1754664650573,-358.10816179,0.00028,12]
[378004275,1754664650583,-527.68033864,0.00028,3]
[378004276,1754664650592,-312.16666667,0.00028,3]
[378004277,1754664650602,-160.0,0.00028025,4]
[378004278,1754664650612,-400.0,0.00028064,5]
[378004279,1754664650621,-1259.39604775,0.00028064,2]
[378004280,1754664650631,-502.25379053,0.00028068,5]
[378004281,1754664650640,-1500.0,0.00028068,5]
[378004282,1754664650650,-151.81592968,0.00028068,5]
[378004283,1754664650659,-660.0,0.00028073,2]
[378004284,1754664650669,-200.0,0.0002809,20]
[378004285,1754664650679,-324.49,0.000281,30]
[378004286,1754664650689,-243.37,0.000281,30]
[378004287,1754664650728,-243.38,0.000281,30]
[378004288,1754664650738,-259.17,0.000281,30]
[378004289,1754664650747,-3000.0,0.00028112,5]
[378004290,1754664650757,-1139.9359,0.00028164,5]
[378004291,1754664650767,-460.0,0.00028218,2]
[378004292,1754664650777,-460.0,0.00028218,2]
[378004293,1754664650786,-310.2458491,0.00028219,2]
[378004294,1754664650796,-690.63,0.00028219,2]
[378004295,1754664650805,-391.24070835,0.00028219,5]
[378004296,1754664650815,-30000.0,0.000283,7]
[378004297,1754664650824,-168.0,0.00028362,2]
[378004298,1754664650834,-152.179415,0.00028385,2]
[378004299,1754664650843,-152.179415,0.00028406,7]
[378004300,1754664650853,-460.0,0.00028492,2]
[378004301,1754664650863,-460.0,0.00028492,2]
[378004302,1754664650872,-690.63,0.00028493,2]
[378004303,1754664650882,-50000.0,0.000285,7]
[378004304,1754664650891,-325.0,0.00028515,7]
[378004305,1754664650901,-587.0,0.00028559,2]
[378004306,1754664650910,-250.0,0.000286,2]
[378004307,1754664650920,-2000.0,0.00028616,5]
[378004308,1754664650930,-760.0,0.00028621,2]
[378004309,1754664650939,-1500.0,0.00028624,7]
[378004310,1754664650951,-168.0,0.00028652,2]
[378004311,1754664650960,-3225.70927803,0.0002866,5]
[378004312,1754664650970,-3182.71876469,0.00028673,10]
[378004313,1754664650982,-206.0,0.0002872,30]
[378004314,1754664650991,-460.0,0.00028766,2]
[378004315,1754664651001,-460.0,0.00028766,2]
[378004316,1754664651010,-690.63,0.00028767,2]
[378004317,1754664651021,-152.179415,0.000289,30]
[378004318,1754664651031,-175.2,0.00028937,15]
[378004319,1754664651041,-166.03,0.00028937,15]
[378004320,1754664651051,-2426.19,0.00028964,15]
[378004321,1754664651060,-874.92237337,0.00029,2]
[378004322,1754664651069,-152.179415,0.00029,10]
[378004323,1754664651080,-312.16666667,0.00029,10]
[378004324,1754664651089,-168.0,0.00029004,2]
[378004325,1754664651099,-175.2,0.00029037,15]
[378004326,1754664651108,-166.03,0.00029037,15]
[378004327,1754664651118,-460.0,0.0002904,2]
[378004328,1754664651127,-460.0,0.0002904,2]
[378004329,1754664651136,-690.63,0.00029041,2]
[378004330,1754664651146,-2426.19,0.00029064,15]
[378004331,1754664651155,-152.179415,0.00029068,5]
[378004332,1754664651164,-1000.0,0.00029132,10]
[378004333,1754664651173,-157.0,0.00029132,10]
[378004334,1754664651183,-500.0,0.00029133,5]
[378004335,1754664651192,-175.20208458,0.00029137,15]
[378004336,1754664651201,-166.03,0.00029137,15]
[378004337,1754664651210,-150.59680682,0.00029155,30]
[378004338,1754664651220,-2426.19,0.00029164,15]
[378004339,1754664651230,-2500.0,0.00029164,5]
[378004340,1754664651240,-860.0,0.00029169,2]
[378004341,1754664651249,-206.0,0.0002918,30]
[378004342,1754664651258,-166.06036272,0.00029237,15]
[378004343,1754664651270,-168.0,0.00029242,2]
[378004344,1754664651280,-2149.0,0.00029256,2]
[378004345,1754664651289,-971.0,0.00029256,2]
[378004346,1754664651298,-636.0,0.00029256,2]
[378004347,1754664651308,-2426.19,0.00029264,15]
[378004348,1754664651319,-1000.0,0.00029268,10]
[378004349,1754664651328,-30000.0,0.000293,7]
[378004350,1754664651337,-160.0,0.00029308,5]
[378004351,1754664651348,-460.0,0.00029314,2]
[378004352,1754664651357,-460.0,0.00029314,2]
[378004353,1754664651367,-690.63,0.00029315,2]
[378004354,1754664651376,-152.179415,0.00029338,3]
[378004355,1754664651385,-657.26931304,0.00029342,2]
[378004356,1754664651394,-2426.19,0.00029364,15]
[378004357,1754664651403,-300.0,0.00029375,5]
[378004358,1754664651413,-1000.0,0.00029405,10]
[378004359,1754664651422,-1500.0,0.00029446,7]
[378004360,1754664651431,-2426.19,0.00029464,15]
[378004361,1754664651441,-657.26931304,0.00029507,2]
[378004362,1754664651450,-152.179415,0.00029521,10]
[378004363,1754664651460,-1000.0,0.00029542,10]
[378004364,1754664651469,-168.0,0.00029558,2]
[378004365,1754664651481,-2426.19,0.00029564,15]
[378004366,1754664651491,-460.0,0.00029588,2]
[378004367,1754664651500,-410.154836,0.00029588,2]
[378004368,1754664651510,-690.63,0.00029589,2]
[378004369,1754664651520,-152.179415,0.00029608,7]
[378004370,1754664651530,-150.0,0.00029634,2]
[378004371,1754664651539,-152.179415,0.00029638,5]
[378004372,1754664651549,-206.0,0.0002964,30]
[378004373,1754664651559,-657.26931304,0.00029644,2]
[378004374,1754664651568,-152.179415,0.00029655,30]
[378004375,1754664651578,-168.0,0.00029658,2]
[378004376,1754664651588,-2426.19,0.00029664,15]
[378004377,1754664651597,-1000.0,0.00029679,10]
[378004378,1754664651607,-776.51859943,0.00029681,5]
[378004379,1754664651617,-3000.0,0.00029712,5]
[378004380,1754664651626,-960.0,0.00029717,2]
[378004381,1754664651636,-2426.19,0.00029764,15]
[378004382,1754664651645,-168.0,0.00029772,2]
[378004383,1754664651655,-657.26931304,0.00029781,2]
[378004384,1754664651665,-168.0,0.0002981,2]
[378004385,1754664651674,-168.0,0.00029811,2]
[378004386,1754664651684,-1000.0,0.00029816,10]
[378004387,1754664651694,-240.24452015,0.00029862,2]
[378004388,1754664651704,-690.63,0.00029863,2]
[378004389,1754664651715,-2426.19,0.00029864,15]
[378004390,1754664651727,-657.26931304,0.00029918,2]
[378004391,1754664651736,-600.0,0.00029923,5]
[378004392,1754664651746,-1000.0,0.00029953,10]
[378004393,1754664651756,-2426.19,0.00029964,15]
[378004394,1754664651766,-1100.0,0.00029966,2]
[378004395,1754664651775,-500.0,0.0002997,2]
[378004396,1754664651785,-700.0,0.00029978,2]
[378004397,1754664651795,-700.0,0.00029995,2]
[378004398,1754664651805,-900.0,0.0003,14]
[378004399,1754664651815,-16671.4250251,0.0003,15]
[378004400,1754664651825,-300.0,0.0003,2]
[378004401,1754664651835,-5055.0,0.0003,7]
[378004402,1754664651844,-9208.72797448,0.0003,2]
[378004403,1754664651854,-19716.93716856,0.0003,30]
[378004404,1754664651863,-200.0,0.0003,25]
[378004405,1754664651873,-527.68033864,0.0003,10]
[378004406,1754664651882,-527.68033864,0.0003,30]
[378004407,1754664651892,-160.0,0.0003,5]
[378004408,1754664651902,-312.16666667,0.0003,10]
[378004409,1754664651911,-312.16666667,0.0003,30]
[378004410,1754664651921,-160.0,0.0003,10]
[378004411,1754664651931,-160.0,0.0003,30]
[378004412,1754664651940,-160.0,0.0003,10]
[378004413,1754664651950,-842.78739015,0.0003,10]
[378004414,1754664651960,-842.78739015,0.0003,30]
[378004415,1754664651969,-160.0,0.0003,10]
[378004416,1754664651980,-160.0,0.0003,30]
[378004417,1754664651990,-4000.0,0.0003,4]
[378004418,1754664651999,-151.0,0.0003,14]
[378004419,1754664652008,-1100.0,0.00030021,7]
[378004420,1754664652018,-1100.0,0.00030027,7]
[378004421,1754664652027,-1100.0,0.00030041,7]
[378004422,1754664652036,-152.179415,0.00030042,10]
[378004423,1754664652047,-168.0,0.00030044,2]
[378004424,1754664652056,-1100.0,0.00030052,7]
[378004425,1754664652066,-657.26931304,0.00030055,2]
[378004426,1754664652075,-2426.19,0.00030064,15]
[378004427,1754664652085,-1100.0,0.00030068,7]
[378004428,1754664652095,-152.179415,0.00030082,2]
[378004429,1754664652104,-1000.0,0.0003009,10]
[378004430,1754664652114,-700.0,0.00030097,7]
[378004431,1754664652124,-206.0,0.000301,30]
[378004432,1754664652134,-2000.0,0.0003013,15]
[378004433,1754664652143,-10184.76362964,0.0003013,2]
[378004434,1754664652153,-946.79006481,0.00030136,2]
[378004435,1754664652162,-500.0,0.00030136,2]
[378004436,1754664652172,-500.0,0.00030136,2]
[378004437,1754664652181,-500.0,0.00030136,2]
[378004438,1754664652190,-482.54837631,0.00030136,2]
[378004439,1754664652200,-690.63,0.00030136,2]
[378004440,1754664652209,-35824.05188,0.00030137,2]
[378004441,1754664652219,-500.0,0.00030156,7]
[378004442,1754664652230,-1100.0,0.00030159,7]
[378004443,1754664652240,-2426.19,0.00030164,15]
[378004444,1754664652249,-500.0,0.00030171,7]
[378004445,1754664652260,-964.08939146,0.000302,2]
[378004446,1754664652270,-1100.0,0.00030207,7]
[378004447,1754664652282,-152.179415,0.00030209,5]
[378004448,1754664652292,-293.85068442,0.00030211,7]
[378004449,1754664652302,-700.0,0.00030218,7]
[378004450,1754664652311,-500.0,0.00030218,7]
[378004451,1754664652322,-657.26931304,0.00030219,2]
[378004452,1754664652332,-1100.0,0.00030245,7]
[378004453,1754664652341,-1100.0,0.0003026,7]
[378004454,1754664652354,-3500.0,0.0003026,5]
[378004455,1754664652365,-1100.0,0.00030263,7]
[378004456,1754664652375,-2426.19,0.00030264,15]
[378004457,1754664652384,-1060.0,0.00030265,2]
[378004458,1754664652396,-1500.0,0.00030268,7]
[378004459,1754664652405,-1100.0,0.0003027,7]
[378004460,1754664652415,-1100.0,0.00030271,7]
[378004461,1754664652425,-22948.3617527,0.000303,7]
[378004462,1754664652435,-700.0,0.00030301,7]
[378004463,1754664652444,-168.0,0.0003032,2]
[378004464,1754664652454,-500.0,0.0003034,7]
[378004465,1754664652463,-2772.79923493,0.00030345,2]
[378004466,1754664652475,-657.26931304,0.00030356,2]
[378004467,1754664652485,-1100.0,0.00030364,7]
[378004468,1754664652495,-2426.19,0.00030364,15]
[378004469,1754664652507,-152.179415,0.00030389,15]
[378004470,1754664652516,-700.0,0.00030393,7]
[378004471,1754664652526,-152.179415,0.0003041,30]
[378004472,1754664652536,-690.63,0.0003041,2]
[378004473,1754664652545,-1100.0,0.00030415,7]
[378004474,1754664652555,-700.0,0.00030426,7]
[378004475,1754664652565,-3182.71876469,0.00030428,14]
[378004476,1754664652575,-200.0,0.00030434,120]
[378004477,1754664652587,-2772.79923493,0.00030445,2]
[378004478,1754664652597,-1100.0,0.00030448,7]
[378004479,1754664652607,-700.0,0.00030452,7]
[378004480,1754664652616,-1100.0,0.00030453,7]
[378004481,1754664652626,-2426.19,0.00030464,15]
[378004482,1754664652636,-900.0,0.00030471,5]
[378004483,1754664652646,-500.0,0.00030472,7]
[378004484,1754664652656,-168.0,0.00030475,2]
[378004485,1754664652666,-1100.0,0.00030486,7]
[378004486,1754664652675,-657.26931304,0.00030493,2]
[378004487,1754664652685,-700.0,0.00030499,7]
[378004488,1754664652695,-1100.0,0.00030509,7]
[378004489,1754664652704,-2772.79923493,0.00030545,2]
[378004490,1754664652713,-190.0,0.0003055,7]
[378004491,1754664652723,-700.0,0.00030558,7]
[378004492,1754664652733,-206.0,0.0003056,30]
[378004493,1754664652743,-1100.0,0.00030562,7]
[378004494,1754664652752,-152.179415,0.00030563,10]
[378004495,1754664652762,-2426.19,0.00030564,15]
[378004496,1754664652772,-152.179415,0.00030567,15]
[378004497,1754664652781,-500.0,0.00030569,7]
[378004498,1754664652790,-1100.0,0.0003057,7]
[378004499,1754664652799,-716.78023212,0.00030572,2]
[378004500,1754664652809,-700.0,0.00030583,7]
[378004501,1754664652819,-1100.0,0.00030585,7]
[378004502,1754664652828,-160.0,0.00030592,6]
[378004503,1754664652837,-657.26931304,0.0003063,2]
[378004504,1754664652848,-2772.79923493,0.00030645,2]
[378004505,1754664652858,-2426.19,0.00030664,15]
[378004506,1754664652868,-690.63,0.00030684,2]
[378004507,1754664652877,-200.0,0.00030694,15]
[378004508,1754664652887,-200.0,0.00030694,15]
[378004509,1754664652897,-200.0,0.00030694,15]
[378004510,1754664652906,-379.0,0.00030694,15]
[378004511,1754664652915,-12179.15,0.000307,7]
[378004512,1754664652925,-17837.05041164,0.000307,7]
[378004513,1754664652935,-500.0,0.0003071,5]
[378004514,1754664652945,-500.0,0.0003071,5]
[378004515,1754664652956,-800.0,0.00030713,2]
[378004516,1754664652965,-1100.0,0.00030714,7]
[378004517,1754664652975,-800.0,0.00030729,2]
[378004518,1754664652985,-6712.32,0.00030733,6]
[378004519,1754664652994,-500.0,0.00030734,7]
[378004520,1754664653004,-700.0,0.00030738,7]
[378004521,1754664653013,-2772.79923493,0.00030745,2]
[378004522,1754664653023,-152.179415,0.00030745,15]
[378004523,1754664653033,-1100.0,0.00030758,7]
[378004524,1754664653044,-2426.19,0.00030764,15]
[378004525,1754664653055,-657.26931304,0.00030767,2]
[378004526,1754664653064,-152.179415,0.00030779,5]
[378004527,1754664653075,-1100.0,0.00030787,7]
[378004528,1754664653085,-800.0,0.00030789,2]
[378004529,1754664653095,-889.71439922,0.00030808,5]
[378004530,1754664653105,-1100.0,0.0003081,7]
[378004531,1754664653115,-152.179415,0.00030811,7]
[378004532,1754664653124,-1160.0,0.00030813,2]
[378004533,1754664653134,-1100.0,0.00030826,7]
[378004534,1754664653143,-500.0,0.0003083,5]
[378004535,1754664653153,-500.0,0.0003083,5]
[378004536,1754664653162,-500.0,0.0003083,5]
[378004537,1754664653171,-521.92981454,0.0003083,5]
[378004538,1754664653181,-500.0,0.0003083,5]
[378004539,1754664653190,-500.0,0.0003083,5]
[378004540,1754664653199,-151.0,0.00030842,14]
[378004541,1754664653208,-2772.79923493,0.00030845,2]
[378004542,1754664653218,-2426.19,0.00030864,15]
[378004543,1754664653228,-1100.0,0.00030879,7]
[378004544,1754664653238,-1100.0,0.00030882,7]
[378004545,1754664653247,-500.0,0.0003089,7]
[378004546,1754664653257,-281933.4866747,0.000309,2]
[378004547,1754664653267,-657.26931304,0.00030904,2]
[378004548,1754664653281,-152.179415,0.00030917,3]
[378004549,1754664653290,-152.179415,0.00030922,15]
[378004550,1754664653299,-800.0,0.00030929,2]
[378004551,1754664653309,-700.0,0.0003093,7]
[378004552,1754664653321,-800.0,0.00030943,2]
[378004553,1754664653331,-2772.79923493,0.00030945,2]
[378004554,1754664653340,-690.86404437,0.00030958,2]
[378004555,1754664653351,-1100.0,0.0003096,7]
[378004556,1754664653361,-823.0,0.00030961,2]
[378004557,1754664653370,-2426.19,0.00030964,15]
[378004558,1754664653380,-800.0,0.00030971,2]
[378004559,1754664653390,-800.0,0.00030986,2]
[378004560,1754664653399,-302.38589805,0.0003099,2]
[378004561,1754664653409,-500.0,0.00030999,7]
[378004562,1754664653419,-151.0,0.00031,120]
[378004563,1754664653429,-6692.361498,0.00031,120]
[378004564,1754664653438,-350.0,0.00031,60]
[378004565,1754664653447,-50000.0,0.00031,30]
[378004566,1754664653457,-160.0,0.00031,30]
[378004567,1754664653467,-800.0,0.00031005,2]
[378004568,1754664653478,-206.0,0.0003101,30]
[378004569,1754664653488,-1100.0,0.0003101,7]
[378004570,1754664653498,-800.0,0.00031013,2]
[378004571,1754664653508,-1200.0,0.00031019,5]
[378004572,1754664653517,-800.0,0.00031026,2]
[378004573,1754664653527,-500.0,0.0003103,5]
[378004574,1754664653537,-500.0,0.00031033,7]
[378004575,1754664653547,-700.0,0.00031035,7]